fUSD/lending_fUSD_20250217
["ID","MTS","AMOUNT","RATE_DAILY","PERIOD"]
[353332928,1739773837875,-10704.0354261,0.0001,2]
[353332929,1739773837893,-622.7692827,0.0001,2]
[353332936,1739773838297,-1800.05207816,0.0001,2]
[353332938,1739773838309,-2061.10263954,0.0001,2]
[353332940,1739773838325,-3264.13760739,0.0001,2]
[353332942,1739773838336,-29289.47653018,0.0001,2]
[353332945,1739773838346,-5508.92049053,0.0001,2]
[353332947,1739773838357,-543.48961775,0.0001,2]
[353332954,1739773838418,-832.25,0.0001,2]
[353332956,1739773838429,-363.60613795,0.0001,2]
[353332959,1739773838440,-1771.28400005,0.0001,2]
[353333119,1739773840089,-259.71546597,0.0001,2]
[353333121,1739773840100,-625.34,0.0001,2]
[353333124,1739773840112,-6664.5727,0.0001,2]
[353333141,1739773840270,-6397.97926643,0.0001,2]
[353333144,1739773840285,-16860.08821025,0.0001,2]
[353333147,1739773840309,-140401.31421958,0.0001,2]
[353333154,1739773840366,-739.295,0.0001,2]
[353333165,1739773840457,-10506.26849954,0.0001,2]
[353333167,1739773840468,-2582.87686137,0.0001,2]
[353333169,1739773840480,-39567.4116,0.0001,2]
[353333197,1739773843077,-4079.34492294,0.0001,2]
[353333198,1739773843089,-7049.17345112,0.0001,2]
[353333199,1739773843225,-1817.67063,0.0001,2]
[353333200,1739773843236,-1765.7713395,0.0001,2]
[353333201,1739773843247,-108932.0,0.0001,2]
[353333202,1739773843323,-176401.91176262,0.0001,2]
[353333203,1739773845969,-389.62427324,0.0001,2]
[353333204,1739773846131,-1605.11937501,0.0001,2]
[353333211,1739773869899,-500.0,8.851e-05,2]
[353333212,1739773918200,-13395.0211,8.836e-05,2]
[353333213,1739773918224,-1486.4417,8.836e-05,2]
[353333214,1739773918250,-118.5372,8.851e-05,2]
[353333215,1739774046315,-174.0,8.851e-05,3]
[353333216,1739774082494,-12903.1859,8.836e-05,2]
[353333217,1739774082519,-226.0912,8.851e-05,2]
[353333218,1739774082547,-1000.0,8.851e-05,2]
[353333219,1739774082572,-2500.0,8.851e-05,2]
[353333220,1739774082601,-481.1318,8.851e-05,2]
[353333221,1739774082646,-150.0,8.912e-05,2]
[353333222,1739774082687,-67563.5812,8.973e-05,2]
[353333223,1739774210947,-1000.0,8.851e-05,2]
[353333224,1739774256240,1971.973,8.256e-05,2]
[353333225,1739774366220,1000.0,0.0002,120]
[353333226,1739774369022,1000.0,0.0002,120]
[353333229,1739774474465,-1360.0,8.851e-05,2]
[353333252,1739775032256,-172.97,9.243e-05,2]
[353333253,1739775032267,-150.0,9.736e-05,2]
[353333254,1739775032276,-356.08545994,9.8e-05,3]
[353333255,1739775032285,-300.0,9.909e-05,2]
[353333256,1739775032295,-2821.37766355,9.91e-05,2]
[353333257,1739775032309,-1708.709968,9.91e-05,2]
[353333258,1739775032320,-305.94287554,9.91e-05,2]
[353333259,1739775032334,-849.3640825,9.91e-05,2]
[353333260,1739775032387,-2400.0,9.91e-05,2]
[353333261,1739775032398,-3194.3548009,9.91e-05,2]
[353333262,1739775032410,-1005.2,9.91e-05,2]
[353333263,1739775032422,-1568.00595115,9.91e-05,2]
[353333264,1739775032453,-774.90712446,9.91e-05,2]
[353333315,1739775038186,-38587.14200977,9.91e-05,2]
[353333316,1739775038196,-500.0,9.999e-05,2]
[353333317,1739775038207,-500.0,9.999e-05,2]
[353333318,1739775038216,-500.0,9.999e-05,2]
[353333319,1739775038226,-500.0,9.999e-05,2]
[353333320,1739775038235,-500.0,9.999e-05,2]
[353333321,1739775038245,-500.0,9.999e-05,2]
[353333322,1739775038254,-370.89179,9.999e-05,2]
[353333323,1739775038264,-407.37228345,9.999e-05,2]
[353333324,1739775038273,-151.77621427,9.999e-05,2]
[353333325,1739775038283,-23157.9789019,0.0001,2]
[353333326,1739775038294,-317.60534398,0.0001,2]
[353333327,1739775038350,-19412.79062973,0.0001,2]
[353333453,1739775040313,-505.46177921,0.0001,2]
[353333454,1739775040325,-4540.28453403,0.0001,2]
[353333455,1739775040337,-489.9573665,0.0001,2]
[353333456,1739775040472,-224670.38813171,0.0001,2]
[353333457,1739775040486,-3736.14361528,0.0001,2]
[353333458,1739775040504,-92344.68746699,0.0001,2]
[353333459,1739775040570,-39857.56944935,0.0001,2]
[353333460,1739775040582,-383.58765094,0.0001,2]
[353333473,1739775043198,-53961.37330821,0.0001,2]
[353333475,1739775043209,-757.57206176,0.0001,2]
[353333477,1739775043220,-12548.25,0.0001,2]
[353333480,1739775043232,-1573.39566405,0.0001,2]
[353333482,1739775043442,-467.84499314,0.0001,2]
[353333483,1739775043484,-7720.0,0.0001,2]
[353333493,1739775046298,-4838.157,0.0001,2]
[353333494,1739775046309,-909.34146577,0.0001,2]
[353333495,1739775046321,-12018.13908377,0.0001,2]
[353333496,1739775046453,-532.688849,0.0001,2]
[353333497,1739775298309,-544.9527,8.851e-05,2]
[353333498,1739775298334,-500.0,8.851e-05,2]
[353333499,1739775298359,-895.0473,8.973e-05,2]
[353333520,1739776123769,-5365.0,8.836e-05,2]
[353333521,1739776133941,-27395.2674,8.836e-05,2]
[353333525,1739776218192,500.0,8.699e-05,2]
[353333526,1739776218215,500.0,8.699e-05,2]
[353333527,1739776218238,500.0,8.699e-05,2]
[353333528,1739776218260,500.0,8.699e-05,2]
[353333529,1739776218281,500.0,8.699e-05,2]
[353333530,1739776218304,500.0,8.699e-05,2]
[353333531,1739776218326,500.0,8.699e-05,2]
[353333532,1739776218348,500.0,8.699e-05,2]
[353333533,1739776218374,1179.5649,8.699e-05,2]
[353333536,1739776232497,-11.0745,8.973e-05,2]
[353333537,1739776232508,-151.7,9.1e-05,2]
[353333538,1739776232518,-907.25,9.535e-05,2]
[353333539,1739776232528,-2153.183,9.8e-05,2]
[353333540,1739776232538,-136.82200155,9.8e-05,2]
[353333541,1739776232552,-38.30799845,9.8e-05,2]
[353333542,1739776232562,-5165.33345893,9.8e-05,2]
[353333543,1739776232572,-1560.75,9.99e-05,2]
[353333544,1739776232581,-631.93395798,9.999e-05,3]
[353333545,1739776232590,-150.0,9.999e-05,2]
[353333546,1739776232599,-37515.3167508,0.0001,2]
[353333547,1739776232611,-5142.1462041,0.0001,2]
[353333548,1739776232912,-1032.43087862,0.0001,2]
[353333573,1739776238271,-10991.17998013,0.0001,2]
[353333574,1739776238329,-1072.35,0.0001,2]
[353333575,1739776238341,-88853.46223797,0.0001,2]
[353333576,1739776238352,-16131.68368021,0.0001,2]
[353333577,1739776238382,-566.66967189,0.0001,2]
[353333578,1739776238582,-811.351313,0.0001,2]
[353333579,1739776238593,-10598.37756257,0.0001,2]
[353333581,1739776238604,-491.99999916,0.0001,2]
[353333583,1739776238617,-9260.05823244,0.0001,2]
[353333750,1739776240469,-619.9049794,0.0001,2]
[353333752,1739776240482,-785.83533901,0.0001,2]
[353333766,1739776240626,-1080.5154265,0.0001,2]
[353333767,1739776240639,-32902.31564465,0.0001,2]
[353333776,1739776240780,-10661.23488406,0.0001,2]
[353333845,1739776243475,-854.55749319,0.0001,2]
[353333846,1739776243488,-740.8361375,0.0001,2]
[353333847,1739776243519,-22460.05586245,0.0001,2]
[353333848,1739776243562,-17519.22885053,0.0001,2]
[353333849,1739776243619,-1721.2882405,0.0001,2]
[353333850,1739776243630,-873.090994,0.0001,2]
[353333851,1739776243644,-2494.99999999,0.0001,2]
[353333852,1739776243657,-7905.78310045,0.0001,2]
[353333853,1739776243691,-8183.03819307,0.0001,2]
[353333854,1739776243703,-264.76451,0.0001,2]
[353333855,1739776243715,-490.44403302,0.0001,2]
[353333856,1739776243726,-296.13443335,0.0001,2]
[353333857,1739776243738,-1973.4,0.0001,2]
[353333902,1739776246598,-289.4796,0.0001,2]
[353333909,1739776329290,680.2199,8.699e-05,2]
[353333911,1739777135384,151.7,7.704e-05,2]
[353333914,1739777154297,1284.28102637,6.94e-05,2]
[353333916,1739777165854,1033.24308446,8e-05,2]
[353333943,1739777431533,-150.0,8.835e-05,2]
[353333945,1739777431543,-3639.2296,8.836e-05,2]
[353333947,1739777431554,-2274.1089,8.836e-05,2]
[353333949,1739777431564,-16053.533,8.836e-05,2]
[353333950,1739777431573,-6728.0142,8.836e-05,2]
[353333951,1739777431583,-315.6435,8.836e-05,2]
[353333952,1739777431592,-2500.0,8.851e-05,2]
[353333953,1739777431602,-981.03269584,8.9e-05,2]
[353333954,1739777431614,-200.0,8.912e-05,2]
[353333955,1739777431624,-814.694,8.973e-05,2]
[353333956,1739777431634,-1017.91,9.29e-05,2]
[353333957,1739777431645,-207.33,9.432e-05,2]
[353333958,1739777431655,-1165.66,9.496e-05,2]
[353333959,1739777431665,-2000.0,9.635e-05,2]
[353333960,1739777431674,-439.11,9.64e-05,2]
[353333961,1739777431684,-300.0,9.694e-05,2]
[353333962,1739777431694,-150.0,9.718e-05,2]
[353333963,1739777431704,-200.0,9.736e-05,2]
[353333964,1739777431714,-195.3,9.767e-05,2]
[353333965,1739777431723,-1000.0,9.849e-05,2]
[353333966,1739777431733,-2181.19,9.92e-05,2]
[353333967,1739777431743,-1096.50577946,9.999e-05,2]
[353333968,1739777431753,-46636.77685825,0.0001,2]
[353333969,1739777431765,-2235.54614608,0.0001,2]
[353333970,1739777431777,-295.95831041,0.0001,2]
[353333971,1739777431788,-2185.53507333,0.0001,2]
[353333972,1739777431850,-32278.87627223,0.0001,2]
[353334021,1739777437771,-438.86429619,0.0001,2]
[353334022,1739777437783,-4932.95769895,0.0001,2]
[353334070,1739777439820,-344.95705443,0.0001,2]
[353334099,1739777442735,-3959.45095164,0.0001,2]
[353334259,1739777445477,-41123.81475261,0.0001,2]
[353334260,1739777445489,-2665.46583,0.0001,2]
[353334263,1739777667308,300.0,0.0002,120]
[353334264,1739777769093,565.16117272,0.0002015,120]
[353334266,1739777920933,-912.0841,8.836e-05,2]
[353334267,1739777920957,-1047.5538,8.836e-05,2]
[353334268,1739777920980,-4320.7209,8.836e-05,2]
[353334270,1739778131719,997.44,8.457e-05,2]
[353334293,1739778483580,-1388.0,8.973e-05,2]
[353334304,1739778570858,-400.0,8.851e-05,2]
[353334305,1739778572359,-400.0,8.851e-05,2]
[353334308,1739778631691,-1700.0,8.851e-05,2]
[353334309,1739778631701,-2090.5717,8.973e-05,2]
[353334310,1739778631710,-286.15,9.43e-05,2]
[353334311,1739778631719,-2000.0,9.43e-05,2]
[353334312,1739778631729,-234.83,9.43e-05,2]
[353334313,1739778631738,-3763.41,9.451e-05,2]
[353334314,1739778631747,-834.63,9.478e-05,2]
[353334315,1739778631756,-1158.85,9.511e-05,2]
[353334316,1739778631766,-168.25,9.713e-05,2]
[353334317,1739778631777,-150.0,9.89e-05,2]
[353334318,1739778631789,-61.47371727,9.909e-05,2]
[353334319,1739778631804,-88.52628273,9.909e-05,2]
[353334320,1739778631814,-165.93371727,9.91e-05,2]
[353334321,1739778631998,-6834.64085429,9.91e-05,2]
[353334322,1739778632010,-2614.97457783,9.91e-05,2]
[353334323,1739778632021,-3653.74999986,9.91e-05,2]
[353334324,1739778632033,-3592.79863,9.91e-05,2]
[353334326,1739778632045,-2717.31450006,9.91e-05,2]
[353334328,1739778632054,-873.3008483,9.91e-05,2]
[353334330,1739778632066,-1958.84225498,9.91e-05,2]
[353334332,1739778632078,-111.07989672,9.91e-05,2]
[353334334,1739778632087,-161.214,9.91e-05,2]
[353334336,1739778632096,-150.0,9.955e-05,2]
[353334338,1739778632106,-97.08534849,9.973e-05,2]
[353334341,1739778632117,-427.12309664,9.973e-05,2]
[353334343,1739778632126,-500.0,9.973e-05,2]
[353334345,1739778632135,-3765.656652,9.992e-05,2]
[353334346,1739778632144,-130.00675649,9.999e-05,2]
[353334349,1739778632155,-114.34814457,9.999e-05,2]
[353334351,1739778632164,-249.01195936,9.999e-05,2]
[353334353,1739778632175,-266.10878064,9.999e-05,2]
[353334355,1739778632184,-500.0,9.999e-05,2]
[353334357,1739778632193,-500.0,9.999e-05,2]
[353334359,1739778632203,-427.70626069,9.999e-05,2]
[353334361,1739778632212,-500.0,9.999e-05,2]
[353334363,1739778632221,-99.31643649,9.999e-05,2]
[353334367,1739778632254,-182.37417226,9.999e-05,2]
[353334369,1739778632264,-348.78725488,9.999e-05,2]
[353334371,1739778632273,-3.95708702,9.999e-05,2]
[353334373,1739778632287,-400.0,9.999e-05,2]
[353334375,1739778632299,-96.04291298,9.999e-05,2]
[353334377,1739778632308,-500.0,9.999e-05,2]
[353334379,1739778632318,-500.0,9.999e-05,2]
[353334382,1739778632328,-55.50721517,9.999e-05,2]
[353334384,1739778632340,-114.54511332,9.999e-05,2]
[353334386,1739778632350,-142.15598898,9.999e-05,2]
[353334391,1739778632387,-357.84401102,9.999e-05,2]
[353334392,1739778632396,-173.35091462,9.999e-05,2]
[353334395,1739778632406,-297662.57221925,0.0001,2]
[353334396,1739778632415,-226.72502447,0.0001,2]
[353334398,1739778632424,-2000.0,0.0001,2]
[353334399,1739778632434,-209.06911417,0.0001,2]
[353334401,1739778632443,-112625.45591011,0.0001,2]
[353334498,1739778637796,-1804.97833439,0.0001,2]
[353334499,1739778637807,-500.0,0.0001,2]
[353334500,1739778637855,-1105.0,0.0001,2]
[353334501,1739778637867,-1194.795,0.0001,2]
[353334502,1739778637938,-9028.46925709,0.0001,2]
[353334547,1739778639853,-5141.84547113,0.0001,2]
[353334548,1739778639864,-338.921158,0.0001,2]
[353334549,1739778639876,-24724.462684,0.0001,2]
[353334612,1739778645911,-214.88718323,0.0001,2]
[353334613,1739778645985,-780.45643997,0.0001,2]
[353334614,1739778645997,-1350.8999996,0.0001,2]
[353334617,1739778670936,400.0,8.851e-05,2]
[353334618,1739778676929,-101.5347,8.851e-05,2]
[353334620,1739778725204,98.4653,8.851e-05,3]
[353334622,1739779143343,-150.0,8.835e-05,2]
[353334623,1739779143367,-300.0,8.835e-05,2]
[353334624,1739779143390,-938.0,8.836e-05,2]
[353334625,1739779148676,1046.49,8.219e-05,2]
[353334626,1739779226658,155.87,7.464e-05,2]
[353334919,1739779831847,-150.0,8.835e-05,2]
[353334920,1739779831856,-150.0,8.835e-05,2]
[353334921,1739779831866,-11006.4659,8.836e-05,2]
[353334922,1739779831876,-6905.20872433,8.836e-05,2]
[353334923,1739779831888,-762.45107567,8.836e-05,2]
[353334924,1739779831897,-7417.5605,8.836e-05,2]
[353334925,1739779831907,-5165.33345893,8.836e-05,2]
[353334926,1739779831917,-961.4593,8.851e-05,2]
[353334927,1739779831926,-8009.8209,8.973e-05,2]
[353334928,1739779831935,-619.36772751,9.018e-05,2]
[353334929,1739779831992,-158.50227249,9.018e-05,2]
[353334930,1739779832002,-500.0,9.093e-05,2]
[353334931,1739779832013,-26.55197486,9.179e-05,2]
[353334932,1739779832024,-498.92723845,9.179e-05,2]
[353334933,1739779832036,-205.45078669,9.179e-05,2]
[353334934,1739779832046,-171.28,9.194e-05,2]
[353334935,1739779832056,-376.46,9.275e-05,2]
[353334936,1739779832065,-1000.0,9.347e-05,2]
[353334937,1739779832075,-7395.8634415,9.347e-05,2]
[353334938,1739779832087,-16504.1365585,9.347e-05,2]
[353334939,1739779832096,-490.46,9.361e-05,2]
[353334940,1739779832105,-289.6,9.415e-05,2]
[353334941,1739779832114,-183.08,9.694e-05,2]
[353334942,1739779832124,-250.0,9.702e-05,2]
[353334943,1739779832134,-250.0,9.713e-05,2]
[353334944,1739779832144,-255.0,9.718e-05,2]
[353334945,1739779832153,-150.0,9.719e-05,2]
[353334946,1739779832165,-150.0,9.719e-05,2]
[353334947,1739779832175,-2000.0,9.763e-05,2]
[353334948,1739779832184,-434.8443714,9.992e-05,2]
[353334949,1739779832194,-2069.5554949,9.992e-05,2]
[353334950,1739779832203,-268.832843,9.992e-05,2]
[353334951,1739779832213,-185.56136983,9.999e-05,2]
[353334952,1739779832222,-35650.96875366,0.0001,2]
[353334953,1739779832234,-51321.19317647,0.0001,2]
[353334966,1739779832573,-45649.03227229,0.0001,2]
[353335005,1739779837981,-5497.88482582,0.0001,2]
[353335006,1739779837994,-7080.69797717,0.0001,2]
[353335007,1739779838025,-742.96260372,0.0001,2]
[353335008,1739779838051,-1943.46898318,0.0001,2]
[353335009,1739779838081,-4365.31421469,0.0001,2]
[353335196,1739779839889,-726.60968967,0.0001,2]
[353335207,1739779839993,-499.21406524,0.0001,2]
[353335213,1739779840036,-512.47442503,0.0001,2]
[353335216,1739779840057,-402.90898115,0.0001,2]
[353335218,1739779840069,-50119.70942129,0.0001,2]
[353335225,1739779840156,-808.9492575,0.0001,2]
[353335232,1739779840262,-4115.48653958,0.0001,2]
[353335239,1739779840317,-985.93,0.0001,2]
[353335241,1739779840328,-19825.6,0.0001,2]
[353335403,1739779842931,-24690.83409114,0.0001,2]
[353335404,1739779842985,-681.83583395,0.0001,2]
[353335405,1739779842996,-381.52,0.0001,2]
[353335406,1739779843040,-12693.4031788,0.0001,2]
[353335407,1739779843100,-333.13973919,0.0001,2]
[353335408,1739779843111,-4743.9744104,0.0001,2]
[353335409,1739779843200,-445.62002,0.0001,2]
[353335414,1739779845836,-383.5086327,0.0001,2]
[353335415,1739779845944,-484.3126053,0.0001,2]
[353335416,1739779846001,-537.30894137,0.0001,2]
[353335417,1739779846012,-39487.17226742,0.0001,2]
[353335418,1739779846024,-21013.53511558,0.0001,2]
[353335419,1739779846053,-626.8265502,0.0001,2]
[353335423,1739780028969,921.0917,8.699e-05,2]
[353335424,1739780041692,165.52,8.641e-05,2]
[353335426,1739780053322,4653.6978,8.699e-05,2]
[353335427,1739780059497,239.9145,8.699e-05,2]
[353335428,1739780090164,985.2546,8.699e-05,2]
[353335429,1739780228449,266.7372,8.699e-05,2]
[353335431,1739780249649,157.96,7.47e-05,2]
[353335433,1739780376134,1039.53,8.219e-05,2]
[353336136,1739781032081,-150.0,8.835e-05,2]
[353336137,1739781032092,-16212.0083,8.836e-05,2]
[353336138,1739781032102,-669.5971,8.836e-05,2]
[353336139,1739781032111,-2911.7662,8.836e-05,2]
[353336140,1739781032121,-22268.3604,8.836e-05,2]
[353336141,1739781032132,-2669.1184,8.836e-05,2]
[353336142,1739781032141,-1058.3721,8.836e-05,2]
[353336143,1739781032151,-250.0,8.873e-05,2]
[353336144,1739781032160,-514.83,8.889e-05,2]
[353336145,1739781032169,-521.56,8.945e-05,2]
[353336146,1739781032179,-1398.3811,8.973e-05,2]
[353336147,1739781032189,-247.31,9.348e-05,2]
[353336148,1739781032201,-6160.16902619,9.445e-05,2]
[353336149,1739781032211,-150.0,9.692e-05,2]
[353336150,1739781032221,-1000.0,9.7e-05,2]
[353336151,1739781032230,-1000.0,9.7e-05,2]
[353336152,1739781032239,-299.99,9.718e-05,2]
[353336153,1739781032249,-6003.15,9.718e-05,2]
[353336154,1739781032259,-255.0,9.718e-05,2]
[353336155,1739781032268,-150.0,9.719e-05,2]
[353336156,1739781032277,-150.0,9.724e-05,2]
[353336157,1739781032286,-150.99,9.724e-05,2]
[353336158,1739781032295,-150.0,9.741e-05,2]
[353336159,1739781032304,-150.0,9.748e-05,2]
[353336160,1739781032315,-150.0,9.756e-05,2]
[353336161,1739781032324,-150.0,9.767e-05,2]
[353336162,1739781032333,-150.58836271,9.777e-05,2]
[353336163,1739781032343,-150.0,9.778e-05,2]
[353336164,1739781032352,-1000.0,9.78e-05,2]
[353336165,1739781032361,-150.0,9.788e-05,2]
[353336166,1739781032370,-150.0,9.79e-05,2]
[353336167,1739781032379,-150.0,9.795e-05,2]
[353336168,1739781032389,-150.0,9.797e-05,2]
[353336169,1739781032398,-150.0,9.798e-05,2]
[353336170,1739781032406,-150.0,9.8e-05,2]
[353336171,1739781032415,-150.0,9.801e-05,2]
[353336172,1739781032424,-150.0,9.809e-05,2]
[353336173,1739781032433,-150.0,9.814e-05,2]
[353336174,1739781032444,-150.0,9.817e-05,2]
[353336175,1739781032453,-150.0,9.822e-05,2]
[353336176,1739781032462,-150.0,9.823e-05,2]
[353336177,1739781032471,-150.0,9.824e-05,2]
[353336178,1739781032480,-150.0,9.825e-05,2]
[353336179,1739781032489,-150.0,9.827e-05,2]
[353336180,1739781032498,-150.0,9.837e-05,2]
[353336181,1739781032506,-150.0,9.851e-05,2]
[353336182,1739781032515,-150.0,9.854e-05,2]
[353336184,1739781032524,-1000.0,9.862e-05,2]
[353336185,1739781032533,-1000.0,9.868e-05,2]
[353336187,1739781032542,-150.0,9.873e-05,2]
[353336189,1739781032551,-150.0,9.886e-05,2]
[353336191,1739781032560,-150.0,9.889e-05,2]
[353336193,1739781032569,-150.0,9.901e-05,2]
[353336195,1739781032578,-1000.0,9.902e-05,2]
[353336197,1739781032587,-150.0,9.905e-05,2]
[353336199,1739781032597,-150.0,9.911e-05,2]
[353336201,1739781032606,-150.0,9.911e-05,2]
[353336203,1739781032615,-1000.0,9.914e-05,2]
[353336205,1739781032624,-150.0,9.917e-05,2]
[353336207,1739781032633,-150.0,9.918e-05,2]
[353336209,1739781032643,-1000.0,9.92e-05,2]
[353336211,1739781032652,-150.0,9.921e-05,2]
[353336213,1739781032662,-150.0,9.922e-05,2]
[353336215,1739781032671,-150.0,9.927e-05,2]
[353336217,1739781032681,-150.0,9.935e-05,2]
[353336219,1739781032690,-150.0,9.953e-05,2]
[353336221,1739781032700,-150.0,9.959e-05,2]
[353336224,1739781032709,-150.0,9.963e-05,2]
[353336225,1739781032718,-150.0,9.975e-05,2]
[353336227,1739781032727,-2962.2653507,9.989e-05,2]
[353336230,1739781032737,-703.67721481,9.989e-05,2]
[353336231,1739781032746,-20965.04274141,9.99e-05,2]
[353336234,1739781032758,-2010.06740946,9.99e-05,2]
[353336236,1739781032770,-1832.1416959,9.99e-05,2]
[353336238,1739781032781,-706.29087696,9.99e-05,2]
[353336241,1739781032792,-300.0,9.99e-05,2]
[353336243,1739781032803,-3105.74811387,9.99e-05,2]
[353336245,1739781032813,-1185.0922373,9.993e-05,2]
[353336247,1739781032822,-987.9886648,9.993e-05,2]
[353336249,1739781032831,-384.7948112,9.993e-05,2]
[353336251,1739781032840,-150.0,9.996e-05,2]
[353336253,1739781032850,-631.93395798,9.999e-05,3]
[353336255,1739781032859,-185.56136983,9.999e-05,2]
[353336257,1739781032868,-1303.31190965,0.0001,2]
[353336260,1739781032889,-912.26201413,0.0001,2]
[353336262,1739781032900,-32278.87627223,0.0001,2]
[353336265,1739781032918,-1005.91138018,0.0001,2]
[353336267,1739781032929,-13580.86654249,0.0001,2]
[353336269,1739781032940,-26239.23426189,0.0001,2]
[353336271,1739781032950,-176.46,0.0001,2]
[353336273,1739781032959,-3481.02293811,0.0001,2]
[353336276,1739781032970,-2044.17048353,0.0001,2]
[353336280,1739781033004,-898.408,0.0001,2]
[353336283,1739781033018,-6515.385521,0.0001,2]
[353336285,1739781033032,-427.6411552,0.0001,2]
[353336483,1739781037909,-3031.98126704,0.0001,2]
[353336484,1739781037920,-580.14924797,0.0001,2]
[353336485,1739781037936,-40750.444,0.0001,2]
[353336486,1739781037947,-8355.461751,0.0001,2]
[353336487,1739781037959,-11752.42874692,0.0001,2]
[353336488,1739781037967,-230.08700266,0.0001,2]
[353336489,1739781037977,-155.0,0.0001,2]
[353336490,1739781037986,-266.12,0.0001,2]
[353336491,1739781037995,-550.0,0.0001,2]
[353336492,1739781038004,-151.0,0.0001,2]
[353336493,1739781038015,-151.0,0.0001,2]
[353336494,1739781038025,-151.0,0.0001,2]
[353336495,1739781038036,-151.0,0.0001,2]
[353336496,1739781038045,-151.0,0.0001,2]
[353336497,1739781038056,-151.0,0.0001,2]
[353336498,1739781038067,-151.0,0.0001,2]
[353336499,1739781038077,-151.0,0.0001,2]
[353336500,1739781038086,-151.0,0.0001,2]
[353336501,1739781038095,-248.51264491,0.0001,2]
[353336502,1739781038105,-3894.54412951,0.0001,2]
[353336503,1739781038143,-3261.41321144,0.0001,2]
[353336504,1739781038176,-393.01182328,0.0001,2]
[353336505,1739781038218,-633.29988076,0.0001,2]
[353336506,1739781038230,-2358.57625377,0.0001,2]
[353336507,1739781038244,-499.69610402,0.0001,2]
[353336621,1739781040058,-473.83458856,0.0001,2]
[353336649,1739781040350,-3379.915,0.0001,2]
[353336651,1739781040362,-6271.888969,0.0001,2]
[353336795,1739781271558,159.01,7.106e-05,2]
[353336796,1739781414264,1063.57,8.219e-05,2]
[353336797,1739781598742,257.41,8.711e-05,2]
[353336798,1739781621248,3561.49528917,8.715e-05,2]
[353336799,1739781621276,20338.50471083,8.715e-05,2]
[353336800,1739781624134,171.28,8.715e-05,2]
[353336801,1739781874487,539.0867,8.699e-05,2]
[353336802,1739781935896,250.0,8.696e-05,2]
[353337050,1739782232367,-300.0,8.835e-05,2]
[353337051,1739782232378,-1763.1986,8.836e-05,2]
[353337052,1739782232388,-3936.8014,8.836e-05,2]
[353337053,1739782232420,-391.64415528,8.836e-05,2]
[353337054,1739782232433,-1343.19124472,8.836e-05,2]
[353337055,1739782232443,-150.0,8.836e-05,2]
[353337056,1739782232452,-200.0,8.844e-05,2]
[353337057,1739782232462,-150.0,8.854e-05,2]
[353337058,1739782232471,-1000.0,8.872e-05,2]
[353337059,1739782232482,-433.64,8.88e-05,2]
[353337060,1739782232492,-168.25,8.881e-05,2]
[353337061,1739782232503,-2000.0,8.882e-05,2]
[353337062,1739782232514,-150.0,8.932e-05,2]
[353337063,1739782232529,-1300.0,8.962e-05,2]
[353337064,1739782232539,-4432.4215,8.973e-05,2]
[353337065,1739782232549,-3048.317,9.31e-05,2]
[353337066,1739782232559,-173.411,9.31e-05,2]
[353337067,1739782232570,-500.0,9.473e-05,2]
[353337068,1739782232580,-500.0,9.499e-05,2]
[353337069,1739782232591,-150.0,9.499e-05,2]
[353337070,1739782232601,-54085.93756767,9.5e-05,2]
[353337071,1739782232620,-2664.13575543,9.5e-05,2]
[353337072,1739782232638,-474.0,9.5e-05,2]
[353337073,1739782232649,-500.0,9.5e-05,2]
[353337074,1739782232686,-579.36353194,9.5e-05,2]
[353337075,1739782232740,-13912.44291097,9.5e-05,2]
[353337076,1739782232752,-1192.53928917,9.5e-05,2]
[353337077,1739782232764,-213447.01841142,9.5e-05,2]
[353337078,1739782232778,-129257.35283898,9.5e-05,2]
[353337100,1739782238390,-2909584.21969442,9.5e-05,2]
[353337101,1739782238406,-500.0,9.636e-05,2]
[353337102,1739782238416,-504.1205203,9.636e-05,2]
[353337103,1739782238426,-200.0,9.719e-05,2]
[353337105,1739782238435,-150.0,9.719e-05,2]
[353337107,1739782238446,-150.0,9.726e-05,2]